Cogmind - Beta 13 @@@ ROGUE MODE // 2024.04.16 @ 16:06:24 Player: Pyry Result: Destroyed by S-10 Pest with Light Assault Rifle Performance ------------- Evolutions (0) 0 Regions Visited (1) 200 Robots Destroyed (11) 55 Value Destroyed (341) 341 Prototype IDs (0) 0 Alien Tech Used (0) 0 Bonus (0) 0 TOTAL SCORE: 596 Bonus ------- None Cogmind --------- Core Integrity 0/250 Matter 266/300 Energy 100/100 System Corruption 0% Temperature Cool (0) Movement Core (1350) Ox26 Location -10/Materials Parts ------- > --- POWER (1) -------- (None) > --- PROPULSION (2) --- (None) > --- UTILITY (2) ------ Huge Storage Unit Signal Interpreter > --- WEAPON (2) ------- (None) > --- INVENTORY (25) --- Aluminum Leg Aluminum Leg Aluminum Leg High-capacity Storage Unit Sensor Array Improved Terrain Scanner Peak State ------------ > --- POWER ------------ Light Ion Engine > --- PROPULSION ------- Wheel Wheel > --- UTILITY ---------- High-capacity Storage Unit Improved Terrain Scanner > --- WEAPON ----------- Medium Laser Light Assault Rifle > --- INVENTORY -------- Ion Engine Light Ion Engine Aluminum Leg Aluminum Leg Seismic Detector [Rating: 9] Favorites ----------- Power Ion Engine Engine Ion Engine Power Core Light Nuclear Core Propulsion Wheel Leg Aluminum Leg Wheel Wheel Utility High-capacity Storage Unit Device Improved Terrain Scanner Storage High-capacity Storage Unit Processor Signal Interpreter Weapon Light Assault Rifle Energy Gun Medium Laser Ballistic Gun Light Assault Rifle Special Weapon Mining Laser Special Melee Weapon Datajack Build | -11 -10 ------- Run | Yrd Mat Slots Evolved . | . . Power . | . . Propulsion . | . . Utility . | . . Weapon . | . . Parts Attached 25 | 6 19 Power 4 | 1 3 Engine 3 | 1 2 Core 1 | . 1 Reactor . | . . Propulsion 7 | 2 5 Treads . | . . Leg 2 | . 2 Wheel 5 | 2 3 Hover . | . . Flight . | . . Utility 6 | 1 5 Device 2 | 1 1 Storage 2 | . 2 Processor 2 | . 2 Hackware . | . . Protection . | . . Artifact . | . . Weapon 8 | 2 6 Energy Gun 2 | 1 1 Energy Cannon . | . . Ballistic Gun 3 | 1 2 Ballistic Cannon . | . . Launcher . | . . Special Weapon 2 | . 2 Impact Weapon . | . . Slashing Weapon . | . . Piercing Weapon . | . . Special Melee Weapon 1 | . 1 Unidentified Prototypes . | . . Parts Lost 16 | . 16 Power 4 | . 4 Propulsion 4 | . 4 Utility 2 | . 2 Weapon 6 | . 6 Highest Loss Streak 7 | . 7 To Critical Strikes . | . . Average Slot Usage (%) 81 | . 81 Engine 10 | . 10 Leg 6 | . 6 Wheel 16 | . 16 Device 9 | . 9 Storage 13 | . 13 Processor 2 | . 2 Energy Gun 3 | . 3 Ballistic Gun 12 | . 12 Special Weapon 3 | . 3 Naked Turns . | . . Heaviest Build 89 | 7 89 Greatest Support 20 | 20 20 Greatest Overweight (x) 26 | . 26 Average Overweight (x) 2 | . 3 Largest Inventory Capacity 25 | 5 25 Average Capacity 20 | 5 21 Most Carried 13 | 5 13 Average Carried 8 | 2 8 Final Capacity 25 | 5 25 Final Carried 6 | 5 6 Class Distribution -------------------- 100% | Mutant Dominant Class ---------------- Mutant | -10/Materials Resources | -11 -10 ----------- Run | Yrd Mat Matter Collected 483 | 264 219 Remotely . | . . Salvage Created 359 | 58 301 Parts 23 | 5 18 Haulers Intercepted . | . . Recyclers Shooed . | . . Parts Field Recycled . | . . Retrieved Matter . | . . Parts Self-Destructed . | . . Prevented . | . . Kills | -11 -10 ------- Run | Yrd Mat Combat Hostiles Destroyed 9 | 1 8 Guns 9 | 1 8 Classes Destroyed 4 | 2 2 Tunneler 1 | 1 . Watcher 1 | . 1 Swarmer 1 | . 1 Grunt 8 | 1 7 Best Kill Streak 2 | 2 2 Combat Bots Only 2 | 1 2 Max Kills in Single Turn 2 | 2 1 Gunslinging 1 | 1 . Exploded . | . . Melee . | . . Uniques/NPCs Destroyed . | . . Combat | -11 -10 -------- Run | Yrd Mat Hostile Shots Fired 157 | 6 151 Missed 48 | 1 47 Damage Taken 1172 | 54 1118 Core 252 | 11 241 Absorbed by Shields . | . . Regen/Repaired (Parts) 22 | . 22 Core Remaining (%) 95 | 95 . Volleys Fired 91 | 4 87 Largest 2 | 2 2 Hottest 100 | 70 100 Shots Fired 104 | 8 96 Gun 102 | 8 94 Cannon . | . . Launcher . | . . Special 2 | . 2 Kinetic 78 | 4 74 Thermal 26 | 4 22 Explosive . | . . Electromagnetic . | . . Robot Hit Streak 11 | 8 11 Robot Miss Streak 3 | . 3 Penetration Max . | . . Secondary Targets 2 | 1 1 Max Gunslinging Chain 1 | 1 1 Shots Hit Robots 75 | 8 67 Core Hits 27 | 3 24 Critical Kills . | . . Critical Parts Destroyed . | . . Critical Strikes 3 | . 3 Burn 3 | . 3 Melee Attacks . | . . Impact . | . . Slashing . | . . Piercing . | . . Sneak Attacks . | . . Combat Hostiles . | . . Follow-up Attacks . | . . Damage Inflicted 850 | 84 766 Guns 850 | 84 766 Cannons . | . . Explosions . | . . Melee . | . . Ramming . | . . Kinetic 573 | 32 541 Thermal 277 | 52 225 Explosive . | . . Electromagnetic . | . . Impact . | . . Slashing . | . . Piercing . | . . Highest Corruption . | . . Average Corruption . | . . Corruption Purged . | . . Corruption Blocked . | . . Overload Shots . | . . Overflow Damage . | . . Projectiles . | . . Explosions . | . . Melee . | . . Knockbacks . | . . Impact . | . . Kinetic . | . . Secondary . | . . Self-Inflicted Damage . | . . Shots . | . . Rammed . | . . Targets Rammed . | . . Kicked . | . . Crushed . | . . Highest Temperature 176 | 84 176 Average Temperature 64 | 43 68 Received Heat Transfer 465 | 30 435 Siege Activations . | . . Robots Corrupted . | . . Combat Hostiles . | . . Parts Fried . | . . Impact Corruptions . | . . Robots Melted . | . . Combat Hostiles . | . . Parts Melted 3 | 1 2 Heat Transferred 1036 | 148 888 Parts Sabotaged . | . . Parts Stolen . | . . Parts Stripped . | . . Power Chain Reactions . | . . Alert | -11 -10 ------- Run | Yrd Mat Peak Influence 105 | 25 105 Initial 16 | . 16 Average 30 | 4 32 Maximum Alert Level . | . . Low Security (%) 100 | 100 100 Level 1 . | . . Level 2 . | . . Level 3 . | . . Level 4 . | . . Level 5 . | . . High Security . | . . Max Security . | . . Squads Dispatched 1 | . 1 Investigation . | . . Extermination . | . . Reinforcement 1 | . 1 Assault . | . . Garrison . | . . Intercept . | . . Searches Triggered . | . . Construction Impeded . | . . Haulers Reinforced . | . . Active Scanning Responses . | . . Cargo Convoy Interrupts . | . . Stealth | -11 -10 --------- Run | Yrd Mat Distress Signals 2 | . 2 Communications Jammed . | . . Distress Signals . | . . Times Spotted 17 | 1 16 Peak Tracking Total 4 | 1 4 Tactical Retreats . | . . Traps | -11 -10 ------- Run | Yrd Mat Traps Triggered 1 | . 1 Indirectly . | . . Trap Hack Attempts . | . . Triggered . | . . Disarmed . | . . Reprogrammed . | . . Reused . | . . Traps Extracted . | . . Installed . | . . Triggered . | . . Machines | -11 -10 ---------- Run | Yrd Mat Machines Disabled 1 | . 1 Max in Single Turn 1 | . 1 Machines Repaired . | . . Machines Dismantled . | . . Machines Sabotaged . | . . Overloaded Fab Kills . | . . Hacking | -11 -10 --------- Run | Yrd Mat Machines Accessed 4 | . 4 Terminals 2 | . 2 Fabricators . | . . Repair Stations 1 | . 1 Recycling Units 1 | . 1 Scanalyzers . | . . Garrison Access . | . . Total Hacks 9 | . 9 Successful 6 | . 6 Failed 3 | . 3 Catastrophic . | . . Database Lockouts . | . . Manual . | . . Terminals 4 | . 4 Fabricators . | . . Repair Stations 2 | . 2 Recycling Units 3 | . 3 Scanalyzers . | . . Garrison Access . | . . Terminal Hacks 1 | . 1 Record 1 | . 1 Fabricator Hacks . | . . Repair Station Hacks 2 | . 2 Scan Component 1 | . 1 Repair 1 | . 1 Recycling Unit Hacks 3 | . 3 Process 1 | . 1 Report Inventory 1 | . 1 Retrieve Matter 1 | . 1 Scanalyzer . | . . Garrison Access Hacks . | . . Unauthorized Hacks . | . . Terminals . | . . Fabricators . | . . Repair Stations . | . . Recycling Units . | . . Scanalyzers . | . . Garrison Access . | . . Data Cores Recovered . | . . Used . | . . Hacking Detections 3 | . 3 Full Trace Events . | . . Feedback Events . | . . Feedback Blocked . | . . Robot Schematics Acquired . | . . Robots Built . | . . Authchips . | . . Time . | . . Total Robot Build Rating . | . . Part Schematics Acquired . | . . Parts Built . | . . Authchips . | . . Time . | . . Total Part Build Rating . | . . Parts Repaired 1 | . 1 Time 26 | . 26 Parts Recycled . | . . Recycled Matter 7 | . 7 Retrieved Matter 7 | . 7 Retrieved Components . | . . Parts Scanalyzed . | . . Part Schematics Acquired . | . . Parts Damaged . | . . Bothacking | -11 -10 ------------ Run | Yrd Mat Used RIF Installer . | . . Robots Hacked . | . . Non-combat . | . . Combat . | . . Robot Hacks Applied . | . . Relay Couplers Released . | . . Fabnet Peak Effective % . | . . Robots Rewired . | . . Allies Hacked . | . . Hacks Repelled . | . . Allies | -11 -10 -------- Run | Yrd Mat Total Allies . | . . Largest Group . | . . Highest-Rated Group . | . . Highest-Rated Ally . | . . Total Orders . | . . Ally Attacks . | . . Total Damage . | . . Kills . | . . Allies Corrupted . | . . Allies Melted . | . . Intel | -11 -10 ------- Run | Yrd Mat Robot Analysis Total . | . . Derelict Logs Recovered . | . . Drone Launches . | . . Drone Recoveries . | . . Exploration | -11 -10 ------------- Run | Yrd Mat Turns Passed 1164 | 84 1080 Spaces Moved 634 | 80 554 Core 25 | 24 1 Treads . | . . Legs 55 | . 55 Wheels 554 | 56 498 Hover . | . . Flight . | . . Fastest Speed 50 | 50 80 Average Speed 145 | 71 155 Slowest Speed 1350 | 80 1350 Overloaded Moves . | . . Propulsion Burnouts . | . . Robots Hopped . | . . Cave-ins Triggered . | . . Exploration Rate (%) 35 | 8 63 Regions Visited 1 Branch Regions . Pre-discovered Areas . | . . Known Exits Taken . | . . Unknown Exits Taken 1 | 1 . Scrap Searched . | . . Spaces Dug 2 | . 2 Terrain Destroyed 2 | . 2 Melee . | . . Projectile 2 | . 2 AOE . | . . Terrain Rammed . | . . Walls Destroyed . | . . Machines Disabled . | . . Actions | -11 -10 --------- Run | Yrd Mat Total 780 | 99 681 Wait 7 | . 7 Move 633 | 79 554 Hop . | . . Pick Up 23 | 10 13 Fast Attach 2 | 1 1 Attach 18 | 5 13 Detach 1 | . 1 Swap 5 | . 5 Drop . | . . Fire 91 | 4 87 Melee . | . . Ram . | . . Kick . | . . Crush . | . . Escape Stasis . | . . Rewire . | . . Trap . | . . Miscellaneous . | . . Route ------- -11/Scrapyard -10/Materials (discovered 4 exits: [*Mat x2] / [*Min x2]) History --------- Turn | Location | Event 2 | -11/Scrapyard | Met Revision 17 54 | -11/Scrapyard | Discovered new exit (range 8) 85 | -11/Scrapyard | Entered Materials 94 | -10/Materials | Discovered new exit (range 16) 257 | -10/Materials | Repaired Wheel? 287 | -10/Materials | Discovered new exit (range 15) 369 | -10/Materials | Build established: Mutant 522 | -10/Materials | Discovered new exit (range 13) 891 | -10/Materials | Core integrity fell below 50% 926 | -10/Materials | Lost 7 parts (2p1n2u2w) 1053 | -10/Materials | Discovered new exit (range 11) 1153 | -10/Materials | Core integrity fell below 20% 1165 | -10/Materials | Destroyed by S-10 Pest with Light Assault Rifle Last Messages --------------- K-01 Serf collects debris. Acquired Aluminum Leg. Acquired 21 matter. K-01 Serf collects debris. R-06 Scavenger collects Heat Sink. K-01 Serf cleans the Purification Channel. EXIT=FOUND Connecting with Terminal... S-10 Pest destroyed. K-01 Serf collects debris. Lgt. Assault Rifle destroyed. Bump into an enemy to attack with the active melee weapon. Even while active, melee weapons do not fire together with ranged weapons in the same volley. Datajack destroyed. Lgt. Ion Engine destroyed. Wheel destroyed. O-16 Technician: "IFF HANDSHAKE FAILED. SECURING TERMINAL." Wheel destroyed. ALERT: Hostiles spotted, dispatching reinforcements to Terminal M008. Map ----- +----------------------------------------------------+ | ????????? ###???????????????????????? | | ????????? ???????????????????????? | | ????????? ????????????????????????? | | ???? ????# ????????????????????????? | | ???# ????# ????????????????????????? | | ???# ????# ?????????????????????????? | | ???#/????# ?????????????????????????? | | ???? # #?????????????????????????? | | ???? """ # #??????????? ?????????????? | | ???? """ # #??????????! ?????????????? | | ???? """ # #?????????? ?????????????? | | ???? # #?????????#+#?????????????? | | ???? ?# ########### #??###????????? | | #####+#### ### !##???????? | | =%* !#???????? | | = !#???????? | | s !#???????? | | % ######## ### " s ## !#???????? | | ########+#### """ ##??##???????? | | """# # "" u "#???????????? | | "# """ # """ T#???????????? | | |"# """ + "" "#???????????? | | < ""# """ # """ ##???????????? | | |"# ! # """ #????????????? | | "# """ # """ #####????????? | | """# """ # " @ #????????? | | #### """ # < #????????? | | #??# # #????????? | | #??##################+######????????? | | #???????????????????? ?????????????? | | " #????????????????????""?????????????? | | " #? ??????????????????""?????????????? | | #???????????????????????????????????? | | +???????????????????????????????????? | | # "?????????????????????????????????? | | " #?? ????????????????????????????????? | | " #?#?????#???????????????????????????? | | " #???#??#????? ??????????????????????? | | ##???????????? ?????????????????????? | | ########## ?????????????????????? | | " ?????????????????????? | | " ?????????????????????? | | ##########????????????????????????? | | #???????? ????????????????????????? | | ## #???????#?????????????????????????? | | ?# #?????????????????????????????????? | | # #?????????????????????????????????? | | + #?????????????????????????????????? | | # #?????????????????????????????????? | | ?# #????????????#????????????????????? | +----------------------------------------------------+ Best States ------------- Heat Dissipation 25 Energy Generation 14 Energy Capacity 250 Matter Stores 300 Matter Capacity 300 Sight Range 16 Terrain Scan Range 16 Terrain Scan Density 10 Evasion (%) 50 Item Schematics ----------------- None Robot Schematics ------------------ None Fabricated ------------ Nothing Alien Tech Used ----------------- None Achievements -------------- Part-time Mechanic Challenges ------------ None Game ------ Seed AuthchipCooledCloak Manual? 0 Play Time 00:17:53 Cumulative 0.8 hours Start 2024.04.16 @ 15:49:37 End 2024.04.16 @ 16:06:24 Sessions 1 Manual Loads 0 Difficulty Rogue Special Mode None Game No. 2 Rogue 2 Adventurer 0 Explorer 0 Win Type - Total 0 Types 0/0/0/0/0/0/0/0/0 Lore% 0 Gallery% 2 Achievement% 3 Wizard Run 0 Options --------- Layout 1 ASCII 0 Keyboard 0 Movement Mouse Keybinds 0 Fullscreen 1 Font 48/Smallcaps Map View 76x35 Zoom Use 0% Tactical HUD 0 Map Filters NONE Filters NONE Steam 1 RUN: f912c8f6-b053-4d43-8147-b11dd39fcd1c